fUST/lending_fUST_20260120
["ID","MTS","AMOUNT","RATE_DAILY","PERIOD"]
[402816794,1768920641127,-469.0,0.0002065,2]
[402816795,1768920641136,-1500.0,0.00020657,2]
[402816796,1768920641146,-401.078308,0.00020687,7]
[402816797,1768920641155,-250.0,0.000207,10]
[402816798,1768920641164,-1500.0,0.00020707,2]
[402816799,1768920641173,-600.0,0.00020711,2]
[402816800,1768920641182,-1500.0,0.00020717,2]
[402816801,1768920641191,-4017.006635,0.00020741,7]
[402816802,1768920641200,-600.0,0.00020756,2]
[402816803,1768920641210,-600.0,0.00020758,2]
[402816804,1768920641219,-1500.0,0.00020759,2]
[402816805,1768920641228,-500.0,0.00020775,2]
[402816806,1768920641238,-201.52801261,0.00020776,2]
[402816807,1768920641247,-250.0,0.000208,10]
[402816808,1768920641257,-1500.0,0.00020814,2]
[402816809,1768920641266,-600.0,0.00020816,2]
[402816810,1768920641277,-600.0,0.00020837,2]
[402816811,1768920641287,-1500.0,0.0002084,2]
[402816812,1768920641296,-600.0,0.00020843,2]
[402816813,1768920641305,-492.92581137,0.00020855,2]
[402816814,1768920641315,-1500.0,0.00020858,2]
[402816815,1768920641325,-1500.0,0.00020888,2]
[402816816,1768920641334,-250.0,0.000209,10]
[402816817,1768920641343,-600.0,0.00020926,2]
[402816818,1768920641357,-600.0,0.00020931,2]
[402816819,1768920641366,-500.0,0.00020939,2]
[402816820,1768920641375,-600.0,0.0002095,2]
[402816821,1768920641385,-600.0,0.00020969,2]
[402816822,1768920641396,-1500.0,0.00020972,2]
[402816823,1768920641406,-600.0,0.00020992,2]
[402816824,1768920641415,-300.0,0.00021,7]
[402816825,1768920641424,-250.0,0.00021,10]
[402816826,1768920641434,-1500.0,0.0002102,2]
[402816827,1768920641445,-2000.0,0.00021034,7]
[402816828,1768920641455,-902.3596719,0.00021048,2]
[402816829,1768920641464,-1500.0,0.00021053,2]
[402816830,1768920641474,-508.9,0.00021073,2]
[402816831,1768920641484,-3023.92978512,0.00021095,2]
[402816832,1768920641493,-250.0,0.000211,10]
[402816833,1768920641503,-151.0,0.00021108,2]
[402816834,1768920641512,-600.0,0.00021156,2]
[402816835,1768920641524,-600.0,0.00021194,2]
[402816836,1768920641533,-500.0,0.00021208,2]
[402816837,1768920641543,-600.0,0.00021209,2]
[402816838,1768920641552,-600.0,0.00021238,2]
[402816839,1768920641562,-600.0,0.00021268,2]
[402816840,1768920641571,-1500.0,0.00021284,2]
[402816841,1768920641581,-600.0,0.00021299,2]
[402816842,1768920641590,-629.0,0.000213,2]
[402816843,1768920641600,-417.0,0.000213,2]
[402816844,1768920641610,-600.0,0.00021344,2]
[402816845,1768920641619,-600.0,0.00021346,2]
[402816846,1768920641629,-600.0,0.00021374,2]
[402816847,1768920641638,-600.0,0.00021394,2]
[402816848,1768920641647,-1500.0,0.000214,2]
[402816849,1768920641657,-1500.0,0.0002141,2]
[402816850,1768920641666,-600.0,0.00021411,2]
[402816851,1768920641675,-600.0,0.00021434,2]
[402816852,1768920641685,-500.0,0.00021452,2]
[402816853,1768920641694,-1500.0,0.00021474,2]
[402816854,1768920641703,-167.89,0.000215,2]
[402816855,1768920641712,-600.0,0.00021516,2]
[402816856,1768920641721,-600.0,0.00021524,2]
[402816857,1768920641731,-600.0,0.00021598,2]
[402816858,1768920641740,-1500.0,0.00021618,2]
[402816859,1768920641749,-600.0,0.00021633,2]
[402816860,1768920641759,-600.0,0.00021639,2]
[402816861,1768920641770,-1500.0,0.00021655,2]
[402816862,1768920641780,-600.0,0.00021692,2]
[402816863,1768920641789,-163.0,0.00021699,5]
[402816864,1768920641799,-44001.63,0.000217,2]
[402816865,1768920641808,-414.67,0.000217,2]
[402816866,1768920641817,-7807.44,0.000217,2]
[402816867,1768920641826,-388.08,0.000217,2]
[402816868,1768920641835,-307.0,0.000217,2]
[402816869,1768920641845,-159.17,0.00021721,2]
[402816870,1768920641853,-1500.0,0.00021743,2]
[402816871,1768920641863,-600.0,0.00021761,2]
[402816872,1768920641872,-600.0,0.00021765,2]
[402816873,1768920641881,-600.0,0.00021798,2]
[402816874,1768920641891,-600.0,0.00021805,2]
[402816875,1768920641901,-2000.0,0.00021849,7]
[402816876,1768920641910,-330.0,0.0002188,2]
[402816877,1768920641919,-151.0,0.00021887,2]
[402816878,1768920641928,-1500.0,0.00021912,2]
[402816879,1768920641938,-1505.1522938,0.00021918,7]
[402816880,1768920641947,-1500.0,0.0002192,2]
[402816881,1768920641957,-600.0,0.00021969,2]
[402816882,1768920641966,-778.62554117,0.00022,3]
[402816883,1768920641976,-578.8,0.00022,7]
[402816884,1768920641986,-2157.0,0.00022,14]
[402816885,1768920641996,-184.0,0.00022,2]
[402816886,1768920642005,-1500.0,0.00022011,2]
[402816888,1768920642016,-600.0,0.00022032,2]
[402816890,1768920642028,-600.0,0.00022034,2]
[402816892,1768920642038,-1500.0,0.00022042,2]
[402816894,1768920642047,-1017.8,0.00022076,2]
[402816896,1768920642057,-600.0,0.00022081,2]
[402816897,1768920642067,-1500.0,0.00022097,2]
[402816898,1768920642077,-1527.53,0.000221,2]
[402816899,1768920642087,-1000.0,0.000221,7]
[402816900,1768920642097,-600.0,0.00022111,2]
[402816901,1768920642107,-600.0,0.00022144,2]
[402816902,1768920642117,-1500.0,0.00022157,2]
[402816903,1768920642127,-1043.40716341,0.00022163,2]
[402816904,1768920642137,-1500.0,0.00022178,2]
[402816905,1768920642146,-500.0,0.00022178,2]
[402816906,1768920642156,-600.0,0.00022205,2]
[402816907,1768920642166,-2898.8072169,0.00022234,2]
[402816908,1768920642175,-600.0,0.00022245,2]
[402816909,1768920642185,-600.0,0.00022249,2]
[402816910,1768920642194,-602.92061325,0.00022279,2]
[402816911,1768920642203,-300.0,0.00022466,2]
[402816912,1768920642213,-200.0,0.00022466,2]
[402816913,1768920642223,-2000.0,0.00022664,7]
[402816914,1768920642233,-151.0,0.00022665,2]
[402816915,1768920642243,-164.0,0.00022795,8]
[402816916,1768920642253,-167.89,0.000228,7]
[402816917,1768920642263,-300.0,0.00022807,2]
[402816918,1768920642275,-535.58285274,0.00022855,2]
[402816919,1768920642284,-1023.78834759,0.00023,2]
[402816920,1768920642294,-450.0,0.00023014,2]
[402816921,1768920642304,-250.0,0.00023014,2]
[402816922,1768920642313,-1526.7,0.0002308,2]
[402816923,1768920642323,-1000.0,0.000231,7]
[402816924,1768920642332,-8964.69750542,0.00023119,2]
[402816925,1768920642342,-5000.0,0.00023119,2]
[402816926,1768920642353,-5000.0,0.00023119,2]
[402816927,1768920642364,-5000.0,0.00023119,2]
[402816928,1768920642374,-5000.0,0.00023119,2]
[402816929,1768920642384,-7530.24,0.00023287,4]
[402816934,1768920642548,-173.642125,0.0002338,30]
[402816935,1768920642558,-151.0,0.00023443,2]
[402816936,1768920642568,-2000.0,0.00023479,7]
[402816937,1768920642578,-414.67,0.000235,7]
[402816938,1768920642588,-7807.44,0.000235,14]
[402816939,1768920642597,-388.08,0.000235,7]
[402816940,1768920642607,-600.0,0.00023562,2]
[402816942,1768920642616,-211.25627413,0.00023562,2]
[402816944,1768920642625,-578.8,0.000237,7]
[402816946,1768920642634,-44001.63,0.000237,2]
[402816948,1768920642644,-165.0,0.0002389,11]
[402816952,1768920642654,-3023.92978512,0.00023959,2]
[402816954,1768920642664,-1041.66666667,0.00024,7]
[402816956,1768920642673,-1021.0,0.00024,2]
[402816958,1768920642683,-2035.59,0.00024083,2]
[402816960,1768920642693,-750.0,0.0002411,2]
[402816962,1768920642702,-1325.16924635,0.00024142,2]
[402816964,1768920642712,-5295.37630842,0.00024142,2]
[402816966,1768920642721,-612.96646219,0.00024142,2]
[402816968,1768920642731,-2451.86584876,0.00024142,2]
[402816970,1768920642739,-5511.18146155,0.00024142,2]
[402816972,1768920642750,-1222.32089428,0.00024142,2]
[402816974,1768920642759,-4884.39429355,0.00024142,2]
[402816976,1768920642769,-52898.0,0.000242,2]
[402816978,1768920642780,-167.89,0.000242,7]
[402816980,1768920642790,-151.0,0.00024222,2]
[402816982,1768920642799,-2000.0,0.00024295,7]
[402816984,1768920642809,-417.0,0.000243,2]
[402816986,1768920642819,-1334.61496379,0.000245,2]
[402816989,1768920642829,-50000.0,0.000245,2]
[402816991,1768920642839,-50000.0,0.000246,2]
[402816994,1768920642848,-900.0,0.00024658,2]
[402816995,1768920642857,-1527.53,0.000247,2]
[402816998,1768920642867,-1381.02,0.000247,3]
[402816999,1768920642876,-952.5,0.00024718,10]
[402817002,1768920642885,-360.26,0.000248,4]
[402817005,1768920642895,-24838.2616362,0.000248,2]
[402817007,1768920642904,-17815.643364,0.00024811,2]
[402817008,1768920642913,-2008.2784268,0.00024811,2]
[402817010,1768920642923,-46861.4398389,0.00024811,2]
[402817013,1768920642932,-251.3196764,0.00024811,2]
[402817014,1768920642942,-12789.2942851,0.00024811,2]
[402817016,1768920642951,-578.23989411,0.00024855,2]
[402817019,1768920642961,-3978.61833062,0.000249,30]
[402817021,1768920642970,-3118.04528553,0.000249,7]
[402817023,1768920642979,-4038.36728031,0.000249,7]
[402817024,1768920642989,-348.0,0.000249,3]
[402817026,1768920642998,-348.0,0.000249,3]
[402817029,1768920643008,-152.0,0.000249,3]
[402817031,1768920643017,-348.0,0.000249,3]
[402817032,1768920643031,-152.0,0.000249,3]
[402817035,1768920643043,-270.2703129,0.000249,3]
[402817037,1768920643052,-152.0,0.000249,3]
[402817038,1768920643062,-152.0,0.000249,3]
[402817040,1768920643072,-152.0,0.000249,3]
[402817042,1768920643082,-153.30769887,0.000249,3]
[402817045,1768920643092,-615433.195339,0.000249,2]
[402817047,1768920643103,-2876.04916302,0.000249,7]
[402817049,1768920643113,-475.0,0.00024907,30]
[402817051,1768920643122,-361.0,0.00024932,7]
[402817053,1768920643132,-216.0,0.00024932,7]
[402817055,1768920643142,-160.0,0.0002495,3]
[402817057,1768920643151,-160.97220368,0.0002495,5]
[402817059,1768920643161,-1212.884577,0.0002498,5]
[402817061,1768920643171,-166.0,0.00024986,15]
[402817063,1768920643180,-7924.41682304,0.00025,4]
[402817065,1768920643190,-200.0,0.00025,17]
[402817067,1768920643200,-848.00080356,0.00025,30]
[402817069,1768920643209,-1900.0,0.00025,30]
[402817071,1768920643219,-160.0,0.00025,30]
[402817073,1768920643228,-598.53853281,0.00025,30]
[402817075,1768920643238,-47000.0,0.00025,30]
[402817077,1768920643248,-5000.0,0.00025,7]
[402817079,1768920643257,-760.63060673,0.00025,2]
[402817081,1768920643267,-361.0,0.00025,7]
[402817083,1768920643282,-216.0,0.00025,7]
[402817085,1768920643291,-1041.66666667,0.00025,30]
[402817087,1768920643301,-269103.09905089,0.00025,15]
[402817100,1768920643425,-8390.99741267,0.00025,15]
[402817103,1768920643438,-5829.6786542,0.00025,15]
[402817105,1768920643449,-4272.22539066,0.00025,15]
[402817109,1768920643486,-260.4103811,0.00016755,2]
[402817113,1768920643506,-739.5896189,0.00025,15]
[402817187,1768920644225,-270.0455652,0.00016755,2]
[402817190,1768920644247,-280.03725112,0.00016755,2]
[402817193,1768920644268,-290.39862941,0.00016755,2]
[402817196,1768920644291,-159.51855427,0.00016755,2]
[402817202,1768920644335,-141.62482443,0.00016755,2]
[402817205,1768920644359,-858.37517557,0.00025,15]
[402817408,1768920646234,-3445.441241,0.00023099,2]
[402817837,1768920801706,-259.577,9.451e-05,2]
[402817838,1768920801732,-204.75379857,9.498e-05,2]
[402817839,1768920801757,-535.66920143,9.544e-05,2]
[402817840,1768920828471,-475.88885361,9.544e-05,2]
[402817841,1768920828491,-221.12454226,9.544e-05,2]
[402817842,1768920828512,-300.0,9.642e-05,2]
[402817843,1768920828533,-2.98660413,9.643e-05,2]
[402817844,1768920862009,2898.24,8.897e-05,2]
[402817845,1768920887804,563.59,0.00024999,120]
[402817846,1768920888058,563.59,0.00024999,120]
[402817847,1768920888280,563.59,0.00024999,120]
[402817848,1768920888522,563.59,0.00024999,120]
[402817849,1768920888779,563.59,0.00024999,120]
[402817850,1768920889029,563.59,0.00024999,120]
[402817851,1768920889259,563.59,0.00024999,120]
[402817852,1768920889540,563.59,0.00024999,120]
[402817853,1768920889804,563.59,0.00024999,120]
[402817854,1768920890058,563.59,0.00024999,120]
[402817855,1768920890304,563.59,0.00025205,120]
[402817856,1768920890536,563.59,0.00025399,120]
[402817857,1768920890783,563.59,0.00025399,120]
[402817858,1768920891024,563.59,0.00025703,120]
[402817859,1768920891271,563.59,0.00025924,120]
[402817860,1768920891515,563.59,0.00025952,120]
[402817861,1768920891780,563.59,0.00025999,120]
[402817862,1768920892025,563.59,0.00025999,120]
[402817863,1768920892273,563.59,0.00025999,120]
[402817864,1768920892544,563.59,0.00025999,120]
[402817865,1768920892775,563.59,0.00025999,120]
[402817866,1768920893025,563.59,0.00025999,120]
[402817867,1768920893282,563.59,0.00025999,120]
[402817868,1768920893536,563.61824153,0.00025999,120]
[402817869,1768920936093,10024.57977559,1e-05,2]
[402817870,1768920978613,500.0,0.00027397,120]
[402817871,1768920978878,500.0,0.00027397,120]
[402817872,1768920979188,500.0,0.00027397,120]
[402817873,1768920979424,500.0,0.00027397,120]
[402817874,1768920979677,500.0,0.00027397,120]
[402817875,1768920979898,566.3,0.00027397,120]
[402817876,1768920987259,500.0,0.00027397,120]
[402817877,1768921059228,500.0,0.00027397,120]
[402817878,1768921059460,500.0,0.00027397,120]
[402817879,1768921059728,500.0,0.00027397,120]
[402817880,1768921059987,500.0,0.00027397,120]
[402817881,1768921060233,500.0,0.00027397,120]
[402817882,1768921060486,500.0,0.00027397,120]
[402817884,1768921134577,500.0,0.00027397,120]
[402817885,1768921134819,545.03,0.00027397,120]
[402817887,1768921242804,5000.0,9e-05,10]
[402817888,1768921265806,5000.0,9e-05,10]
[402817889,1768921314401,540.51,5.795e-05,2]
[402817890,1768921314863,1081.02,6.071e-05,2]
[402817891,1768921315815,1621.53,6.347e-05,2]
[402817892,1768921316271,2162.04,6.623e-05,2]
[402817893,1768921316739,2702.56,6.899e-05,2]
[402817894,1768921317208,3243.07,7.175e-05,2]
[402817895,1768921317687,1892.34,7.451e-05,2]
[402817896,1768921317725,1891.24,7.451e-05,2]
[402817897,1768921318113,4324.09,7.727e-05,2]
[402817898,1768921318559,3784.68,8.003e-05,2]
[402817899,1768921318595,1079.92,8.003e-05,2]
[402817900,1768921319501,5405.11,8.279e-05,2]
[402817901,1768921343628,172.7795159,8.344e-05,2]
[402817903,1768921388987,500.0,0.00027397,120]
[402817904,1768921389234,500.0,0.00027397,120]
[402817905,1768921389633,605.78,0.00027397,120]
[402817906,1768921412894,500.0,0.00027397,120]
[402817907,1768921413134,500.0,0.00027397,120]
[402817908,1768921414995,500.0,0.00027397,120]
[402817909,1768921415191,500.0,0.00027397,120]
[402817910,1768921428031,-300.0,9.17e-05,10]
[402817911,1768921429416,-300.0,9.17e-05,10]
[402817913,1768921547255,235.0,8e-05,15]
[402817915,1768921631863,5000.0,8.797e-05,2]
[402817917,1768921656405,5000.0,8.797e-05,2]
[402817918,1768921671938,0.01,8.797e-05,2]
[402817919,1768921671960,299.99,8.797e-05,2]
[402817920,1768921680135,222.76,9.99e-06,2]
[402817921,1768921680439,222.75,9.99e-06,2]
[402817922,1768921680543,5000.0,8.797e-05,2]
[402817976,1768921832269,-449.74,8.895e-05,2]
[402818443,1768921838402,-4550.26,8.895e-05,2]
[402818444,1768921838412,-545.0,8.895e-05,2]
[402818445,1768921838422,-209.88968776,8.94e-05,2]
[402818446,1768921838431,-300.0,8.984e-05,2]
[402818447,1768921838440,-300.0,8.984e-05,2]
[402818448,1768921838450,-300.0,8.984e-05,2]
[402818450,1768921838460,-1200.0,8.984e-05,2]
[402818452,1768921838469,-3883.06407575,8.985e-05,2]
[402818453,1768921838481,-1116.93592425,8.985e-05,2]
[402818454,1768921838492,-300.0,9.074e-05,2]
[402818455,1768921838502,-2664.59212137,9.262e-05,2]
[402818456,1768921838513,-47335.40787863,9.262e-05,2]
[402818457,1768921838523,-500.0,9.262e-05,2]
[402818458,1768921838535,-416.40483068,9.262e-05,2]
[402818459,1768921838545,-500.0,9.262e-05,2]
[402818460,1768921838555,-500.0,9.262e-05,2]
[402818461,1768921838565,-500.0,9.262e-05,2]
[402818462,1768921838575,-500.0,9.262e-05,2]
[402818463,1768921838584,-500.0,9.262e-05,2]
[402818464,1768921838594,-500.0,9.262e-05,2]
[402818465,1768921838603,-500.0,9.262e-05,2]
[402818466,1768921838612,-500.0,9.262e-05,2]
[402818467,1768921838622,-500.0,9.262e-05,2]
[402818468,1768921838632,-500.0,9.262e-05,2]
[402818469,1768921838641,-500.0,9.262e-05,2]
[402818470,1768921838650,-500.0,9.262e-05,2]
[402818471,1768921838660,-500.0,9.262e-05,2]
[402818472,1768921838671,-500.0,9.262e-05,2]
[402818473,1768921838683,-556.54927366,9.262e-05,2]
[402818474,1768921838695,-346.17455673,9.262e-05,2]
[402818475,1768921838705,-500.0,9.262e-05,2]
[402818476,1768921838715,-400.93378366,9.262e-05,2]
[402818477,1768921838727,-500.0,9.262e-05,2]
[402818479,1768921838739,-500.0,9.262e-05,2]
[402818480,1768921838751,-500.0,9.262e-05,2]
[402818482,1768921838762,-500.0,9.262e-05,2]
[402818484,1768921838772,-500.0,9.262e-05,2]
[402818486,1768921838783,-500.0,9.262e-05,2]
[402818488,1768921838793,-500.0,9.262e-05,2]
[402818490,1768921838803,-500.0,9.262e-05,2]
[402818492,1768921838815,-500.0,9.262e-05,2]
[402818494,1768921838824,-500.0,9.262e-05,2]
[402818496,1768921838834,-500.0,9.262e-05,2]
[402818498,1768921838844,-500.0,9.262e-05,2]
[402818500,1768921838855,-500.0,9.262e-05,2]
[402818502,1768921838865,-500.0,9.262e-05,2]
[402818504,1768921838875,-500.0,9.262e-05,2]
[402818506,1768921838885,-500.0,9.262e-05,2]
[402818508,1768921838895,-500.0,9.262e-05,2]
[402818510,1768921838904,-500.0,9.262e-05,2]
[402818512,1768921838913,-500.0,9.262e-05,2]
[402818514,1768921838923,-500.0,9.262e-05,2]
[402818516,1768921838932,-500.0,9.262e-05,2]
[402818518,1768921838942,-500.0,9.262e-05,2]
[402818520,1768921838952,-500.0,9.262e-05,2]
[402818522,1768921838961,-500.0,9.262e-05,2]
[402818524,1768921838971,-500.0,9.262e-05,2]
[402818526,1768921838981,-500.0,9.262e-05,2]
[402818527,1768921838992,-500.0,9.262e-05,2]
[402818530,1768921839001,-500.0,9.262e-05,2]
[402818532,1768921839012,-500.0,9.262e-05,2]
[402818534,1768921839022,-500.0,9.262e-05,2]
[402818535,1768921839032,-500.0,9.262e-05,2]
[402818537,1768921839042,-500.0,9.262e-05,2]
[402818540,1768921839052,-500.0,9.262e-05,2]
[402818542,1768921839063,-500.0,9.262e-05,2]
[402818544,1768921839073,-500.0,9.262e-05,2]
[402818546,1768921839083,-500.0,9.262e-05,2]
[402818548,1768921839093,-155.94328266,9.262e-05,2]
[402818550,1768921839104,-500.0,9.262e-05,2]
[402818552,1768921839115,-500.0,9.262e-05,2]
[402818554,1768921839127,-500.0,9.262e-05,2]
[402818556,1768921839139,-500.0,9.262e-05,2]
[402818558,1768921839150,-544.71295186,9.262e-05,2]
[402818560,1768921839160,-500.0,9.262e-05,2]
[402818562,1768921839171,-500.0,9.262e-05,2]
[402818564,1768921839182,-500.0,9.262e-05,2]
[402818566,1768921839192,-500.0,9.262e-05,2]
[402818568,1768921839202,-500.0,9.262e-05,2]
[402818570,1768921839212,-500.0,9.262e-05,2]
[402818572,1768921839223,-433.64491726,9.262e-05,2]
[402818574,1768921839234,-500.0,9.262e-05,2]
[402818576,1768921839247,-500.0,9.262e-05,2]
[402818578,1768921839257,-500.0,9.262e-05,2]
[402818580,1768921839268,-500.0,9.262e-05,2]
[402818582,1768921839278,-500.0,9.262e-05,2]
[402818584,1768921839289,-500.0,9.262e-05,2]
[402818587,1768921839299,-500.0,9.262e-05,2]
[402818589,1768921839309,-500.0,9.262e-05,2]
[402818590,1768921839319,-500.0,9.262e-05,2]
[402818593,1768921839329,-500.0,9.262e-05,2]
[402818594,1768921839340,-500.0,9.262e-05,2]
[402818596,1768921839350,-500.0,9.262e-05,2]
[402818598,1768921839360,-500.0,9.262e-05,2]
[402818600,1768921839371,-500.0,9.262e-05,2]
[402818603,1768921839381,-500.0,9.262e-05,2]
[402818604,1768921839391,-500.0,9.262e-05,2]
[402818606,1768921839401,-500.0,9.262e-05,2]
[402818608,1768921839411,-500.0,9.262e-05,2]
[402818610,1768921839420,-500.0,9.262e-05,2]
[402818612,1768921839430,-428.18671064,9.262e-05,2]
[402818614,1768921839441,-500.0,9.262e-05,2]
[402818616,1768921839451,-500.0,9.262e-05,2]
[402818618,1768921839461,-500.0,9.262e-05,2]
[402818621,1768921839471,-500.0,9.262e-05,2]
[402818622,1768921839480,-500.0,9.262e-05,2]
[402818624,1768921839491,-500.0,9.262e-05,2]
[402818626,1768921839501,-500.0,9.262e-05,2]
[402818629,1768921839510,-500.0,9.262e-05,2]
[402818631,1768921839520,-496.46598967,9.262e-05,2]
[402818632,1768921839531,-500.0,9.262e-05,2]
[402818634,1768921839541,-500.0,9.262e-05,2]
[402818636,1768921839551,-500.0,9.262e-05,2]
[402818638,1768921839561,-500.0,9.262e-05,2]
[402818640,1768921839572,-500.0,9.262e-05,2]
[402818642,1768921839582,-500.0,9.262e-05,2]
[402818644,1768921839592,-500.0,9.262e-05,2]
[402818646,1768921839602,-500.0,9.262e-05,2]
[402818648,1768921839612,-500.0,9.262e-05,2]
[402818650,1768921839622,-500.0,9.262e-05,2]
[402818652,1768921839632,-500.0,9.262e-05,2]
[402818654,1768921839643,-500.0,9.262e-05,2]
[402818656,1768921839653,-500.0,9.262e-05,2]
[402818657,1768921839663,-500.0,9.262e-05,2]
[402818659,1768921839674,-500.0,9.262e-05,2]
[402818661,1768921839687,-500.0,9.262e-05,2]
[402818663,1768921839698,-500.0,9.262e-05,2]
[402818665,1768921839708,-500.0,9.262e-05,2]
[402818667,1768921839719,-500.0,9.262e-05,2]
[402818669,1768921839730,-500.0,9.262e-05,2]
[402818671,1768921839745,-500.0,9.262e-05,2]
[402818673,1768921839756,-500.0,9.262e-05,2]
[402818675,1768921839767,-500.0,9.262e-05,2]
[402818677,1768921839777,-500.0,9.262e-05,2]
[402818679,1768921839787,-500.0,9.262e-05,2]
[402818681,1768921839798,-500.0,9.262e-05,2]
[402818683,1768921839808,-500.0,9.262e-05,2]
[402818685,1768921839819,-500.0,9.262e-05,2]
[402818687,1768921839829,-500.0,9.262e-05,2]
[402818689,1768921839840,-500.0,9.262e-05,2]
[402818691,1768921839850,-500.0,9.262e-05,2]
[402818693,1768921839861,-500.0,9.262e-05,2]
[402818695,1768921839871,-500.0,9.262e-05,2]
[402818697,1768921839881,-500.0,9.262e-05,2]
[402818700,1768921839891,-500.0,9.262e-05,2]
[402818701,1768921839901,-500.0,9.262e-05,2]
[402818703,1768921839912,-500.0,9.262e-05,2]
[402818705,1768921839922,-500.0,9.262e-05,2]
[402818707,1768921839932,-500.0,9.262e-05,2]
[402818709,1768921839942,-500.0,9.262e-05,2]
[402818711,1768921839952,-500.0,9.262e-05,2]
[402818713,1768921839963,-500.0,9.262e-05,2]
[402818715,1768921839973,-500.00000001,9.262e-05,2]
[402818717,1768921839983,-500.0,9.263e-05,2]
[402818719,1768921839995,-500.0,9.263e-05,2]
[402818720,1768921840005,-500.0,9.263e-05,2]
[402818722,1768921840015,-500.0,9.263e-05,2]
[402818724,1768921840025,-500.0,9.351e-05,2]
[402818726,1768921840036,-640.74604247,9.351e-05,2]
[402818728,1768921840047,-352.31897321,9.351e-05,2]
[402818730,1768921840058,-207.662,9.451e-05,2]
[402818732,1768921840068,-178.0,9.882e-05,2]
[402818749,1768921840078,-420.0,9.882e-05,2]
[402818752,1768921840263,-1680.0,9.882e-05,2]
[402818753,1768921840274,-297.0,9.981e-05,2]
[402818755,1768921840284,-1809.35522155,9.984e-05,2]
[402818757,1768921840295,-587.0,0.00010871,2]
[402818759,1768921840307,-227.0,0.00010871,2]
[402818761,1768921840318,-247.66983155,0.0001094,2]
[402818763,1768921840329,-493.0,0.00011958,2]
[402818764,1768921840339,-189.43773022,0.00012821,2]
[402818766,1768921840350,-1747.12086578,0.000129,2]
[402818768,1768921840360,-1747.12086572,0.000129,2]
[402818769,1768921840371,-285.44997535,0.0001294,2]
[402818770,1768921840383,-1041.66666667,0.00013213,2]
[402818771,1768921840395,-182.52481675,0.00013232,2]
[402818772,1768921840406,-514.22909233,0.00013273,2]
[402818773,1768921840417,-497.53975942,0.00013273,2]
[402818774,1768921840428,-500.0,0.00013273,2]
[402818775,1768921840439,-500.0,0.00013698,2]
[402818776,1768921840450,-500.0,0.00013698,2]
[402818777,1768921840462,-500.0,0.00013698,2]
[402818778,1768921840473,-500.0,0.00013698,2]
[402818779,1768921840483,-1000.0,0.00013699,2]
[402818780,1768921840502,-795.351507,0.00013699,2]
[402818781,1768921840513,-500.0,0.00013699,2]
[402818782,1768921840524,-597.64719261,0.00013699,2]
[402818784,1768921840534,-1000.0,0.00013821,2]
[402818785,1768921840544,-1039.55,0.00014268,2]
[402818786,1768921840554,-1500.0,0.00014368,2]
[402818787,1768921840565,-5000.0,0.0001451,2]
[402818788,1768921840575,-500.0,0.00014916,2]
[402818789,1768921840585,-323.23011915,0.0001494,2]
[402818790,1768921840595,-439.903069,0.00015068,2]
[402818792,1768921840606,-1747.12086572,0.00015083,2]
[402818794,1768921840617,-267.778,0.0001531,2]
[402818796,1768921840627,-629.0,0.0001531,2]
[402818798,1768921840637,-292.0,0.00016219,3]